fUST/lending_fUST_20260110
["ID","MTS","AMOUNT","RATE_DAILY","PERIOD"]
[401149557,1767977503206,-500.0,0.00030136,2]
[401149558,1767977503215,-500.0,0.00030136,2]
[401149559,1767977503223,-500.0,0.00030136,2]
[401149560,1767977503233,-502.00961949,0.00030136,2]
[401149561,1767977503242,-1923.85,0.00030136,6]
[401149562,1767977503250,-12537.93,0.00030136,3]
[401149563,1767977503259,-12537.93,0.00030136,3]
[401149564,1767977503268,-12537.93,0.00030136,3]
[401149565,1767977503277,-1795.58,0.00030136,21]
[401149566,1767977503286,-12537.93,0.00030136,3]
[401149567,1767977503294,-1795.58,0.00030136,21]
[401149568,1767977503303,-12537.93,0.00030136,3]
[401149569,1767977503312,-1795.58,0.00030136,21]
[401149570,1767977503322,-12537.93,0.00030136,3]
[401149571,1767977503331,-1795.58,0.00030136,21]
[401149572,1767977503340,-12537.93,0.00030136,3]
[401149573,1767977503349,-1795.58,0.00030136,21]
[401149574,1767977503359,-12537.93,0.00030136,3]
[401149575,1767977503369,-1795.58,0.00030136,21]
[401149576,1767977503379,-12537.93,0.00030136,3]
[401149577,1767977503388,-12537.93,0.00030136,3]
[401149578,1767977503398,-1795.58,0.00030136,21]
[401149579,1767977503407,-1795.58,0.00030136,21]
[401149580,1767977503417,-12537.93,0.00030136,3]
[401149581,1767977503426,-1795.58,0.00030136,21]
[401149582,1767977503435,-12537.93,0.00030136,3]
[401149583,1767977503445,-1795.58,0.00030136,21]
[401149584,1767977503454,-12537.93,0.00030136,3]
[401149585,1767977503463,-1795.58,0.00030136,21]
[401149586,1767977503473,-12537.93,0.00030136,3]
[401149587,1767977503482,-1795.58,0.00030136,21]
[401149588,1767977503491,-12537.93,0.00030136,3]
[401149589,1767977503501,-1795.58,0.00030136,21]
[401149590,1767977503510,-12537.93,0.00030136,3]
[401149591,1767977503519,-1795.58,0.00030136,21]
[401149592,1767977503528,-12537.93,0.00030136,3]
[401149593,1767977503537,-1795.58,0.00030136,21]
[401149594,1767977503546,-12537.93,0.00030136,3]
[401149595,1767977503555,-1795.58,0.00030136,21]
[401149596,1767977503564,-12537.93,0.00030136,3]
[401149597,1767977503574,-1795.58,0.00030136,21]
[401149598,1767977503584,-12537.93,0.00030136,3]
[401149599,1767977503593,-1795.58,0.00030136,21]
[401149600,1767977503602,-12537.93,0.00030136,3]
[401149601,1767977503611,-1795.58,0.00030136,21]
[401149602,1767977503621,-12537.93,0.00030136,3]
[401149603,1767977503630,-1795.58,0.00030136,21]
[401149604,1767977503639,-1795.58,0.00030136,21]
[401149605,1767977503648,-12537.93,0.00030136,3]
[401149606,1767977503657,-1795.58,0.00030136,21]
[401149607,1767977503665,-12538.04389034,0.00030136,3]
[401149608,1767977503675,-1795.58,0.00030136,21]
[401149609,1767977503684,-1795.66373157,0.00030136,21]
[401149610,1767977503695,-500.0,0.00030136,60]
[401149611,1767977503703,-500.0,0.00030136,60]
[401149612,1767977503712,-513.69477955,0.00030136,60]
[401149613,1767977503721,-504.72041116,0.00030136,30]
[401149614,1767977503730,-151.0,0.00030136,14]
[401149615,1767977503740,-151.0,0.00030136,14]
[401149616,1767977503750,-151.0,0.00030136,14]
[401149617,1767977503760,-500.0,0.00030136,2]
[401149618,1767977503770,-500.0,0.00030136,2]
[401149619,1767977503782,-501.15183352,0.00030136,2]
[401149620,1767977503794,-151.0,0.00030136,14]
[401149621,1767977503804,-151.0,0.00030136,14]
[401149622,1767977503813,-500.0,0.00030136,7]
[401149623,1767977503824,-500.0,0.00030136,7]
[401149624,1767977503833,-500.0,0.00030136,7]
[401149625,1767977503842,-500.0,0.00030136,7]
[401149626,1767977503851,-500.0,0.00030136,12]
[401149627,1767977503861,-500.0,0.00030136,7]
[401149628,1767977503870,-500.67930008,0.00030136,12]
[401149629,1767977503879,-500.0,0.00030136,7]
[401149630,1767977503888,-500.0,0.00030136,7]
[401149631,1767977503898,-500.0,0.00030136,7]
[401149632,1767977503907,-500.0,0.00030136,7]
[401149633,1767977503916,-500.0,0.00030136,7]
[401149634,1767977503925,-500.0,0.00030136,7]
[401149635,1767977503934,-500.0,0.00030136,7]
[401149636,1767977503947,-500.0,0.00030136,7]
[401149637,1767977503957,-500.0,0.00030136,7]
[401149638,1767977503966,-500.0,0.00030136,7]
[401149639,1767977503975,-500.0,0.00030136,7]
[401149640,1767977503985,-500.0,0.00030136,7]
[401149641,1767977503995,-500.0,0.00030136,7]
[401149642,1767977504004,-500.0,0.00030136,7]
[401149643,1767977504014,-500.0,0.00030136,7]
[401149644,1767977504023,-177.77995229,0.00030136,7]
[401149645,1767977504032,-500.0,0.00030137,7]
[401149646,1767977504042,-500.0,0.00030137,7]
[401149647,1767977504051,-500.0,0.00030137,7]
[401149648,1767977504060,-500.0,0.00030137,2]
[401149649,1767977504069,-500.0,0.00030137,2]
[401149650,1767977504078,-378.58,0.00030137,7]
[401149651,1767977504087,-166.626722,0.00030137,120]
[401149652,1767977504096,-166.626722,0.00030137,120]
[401149653,1767977504106,-753.03523332,0.00030137,5]
[401149654,1767977504115,-755.50011934,0.00030137,5]
[401149655,1767977504124,-2000.0,0.00030137,120]
[401149656,1767977504133,-2000.0,0.00030137,120]
[401149657,1767977504142,-2000.0,0.00030137,120]
[401149658,1767977504151,-2000.0,0.00030137,120]
[401149659,1767977504160,-2000.0,0.00030137,120]
[401149660,1767977504169,-2000.0,0.00030137,120]
[401149661,1767977504179,-2000.0,0.00030137,120]
[401149662,1767977504188,-2000.0,0.00030137,120]
[401149663,1767977504201,-2000.0,0.00030137,120]
[401149664,1767977504210,-2000.0,0.00030137,120]
[401149665,1767977504220,-2000.0,0.00030137,120]
[401149666,1767977504229,-2000.0,0.00030137,120]
[401149667,1767977504238,-2000.0,0.00030137,120]
[401149668,1767977504248,-2000.0,0.00030137,120]
[401149669,1767977504257,-2000.0,0.00030137,120]
[401149670,1767977504267,-2000.0,0.00030137,120]
[401149671,1767977504277,-2000.0,0.00030137,120]
[401149672,1767977504286,-1158.0,0.00030137,120]
[401149673,1767977504296,-386.8583067,0.00030137,120]
[401149674,1767977504306,-1059.1,0.00030137,2]
[401149675,1767977504315,-353.03,0.00030137,2]
[401149676,1767977504324,-353.03,0.00030137,2]
[401149677,1767977504334,-1059.09,0.00030137,2]
[401149678,1767977504344,-763.03,0.00030137,2]
[401149679,1767977504354,-588.39,0.00030137,2]
[401149680,1767977504364,-317.67,0.00030137,2]
[401149681,1767977504373,-588.16,0.00030137,2]
[401149682,1767977504383,-882.24,0.00030137,2]
[401149683,1767977504393,-353.03,0.00030137,2]
[401149684,1767977504403,-353.03,0.00030137,2]
[401149685,1767977504412,-353.03,0.00030137,2]
[401149686,1767977504421,-353.03,0.00030137,2]
[401149687,1767977504430,-353.03,0.00030137,2]
[401149688,1767977504439,-1867.21,0.000302,2]
[401149689,1767977504450,-10990.61241847,0.00030276,2]
[401149690,1767977504459,-1867.21,0.000303,2]
[401149691,1767977504469,-1867.21,0.000303,2]
[401149692,1767977504478,-1867.21,0.000304,2]
[401149693,1767977504487,-1867.21,0.000304,2]
[401149694,1767977504496,-335.0,0.00030447,14]
[401149695,1767977504504,-1867.21,0.000305,2]
[401149696,1767977504514,-151.05135746,0.00030555,5]
[401149697,1767977504523,-2000.0,0.0003057,7]
[401149698,1767977504532,-1867.21,0.000306,2]
[401149699,1767977504541,-1867.21,0.000306,2]
[401149700,1767977504549,-157.0,0.00030658,41]
[401149701,1767977504558,-1867.21,0.000307,2]
[401149702,1767977504567,-1000.0,0.00030747,30]
[401149703,1767977504577,-1000.0,0.00030747,30]
[401149704,1767977504586,-1000.0,0.00030747,30]
[401149705,1767977504595,-10119.5807812,0.00030756,2]
[401149706,1767977504604,-467.25,0.000308,7]
[401149707,1767977504613,-1867.21,0.000308,2]
[401149708,1767977504622,-1867.21,0.000308,2]
[401149709,1767977504633,-1000.0,0.00030813,14]
[401149710,1767977504642,-1867.21,0.000309,2]
[401149711,1767977504651,-1867.21,0.000309,2]
[401149712,1767977504661,-1041.66666667,0.000309,10]
[401149713,1767977504671,-310.27,0.00030958,30]
[401149714,1767977504680,-306.04400206,0.0003099,2]
[401149715,1767977504690,-1610.105,0.00031,10]
[401149716,1767977504700,-1449.6647,0.00031,30]
[401149717,1767977504710,-611.15,0.00031,2]
[401149718,1767977504719,-1867.21,0.00031,2]
[401149719,1767977504728,-1216.41896359,0.00031,120]
[401149720,1767977504738,-150.3928264,0.00031,7]
[401149721,1767977504748,-1867.21,0.000311,2]
[401149722,1767977504761,-1867.21,0.000311,2]
[401149723,1767977504769,-14324.40677976,0.0003112,2]
[401149724,1767977504780,-775.0,0.000312,13]
[401149725,1767977504792,-1867.21,0.000312,2]
[401149726,1767977504801,-1867.21,0.000312,2]
[401149727,1767977504811,-848.432305,0.00031298,2]
[401149728,1767977504820,-1867.21,0.000313,2]
[401149729,1767977504830,-1867.21,0.000314,2]
[401149730,1767977504839,-1867.21,0.000314,2]
[401149731,1767977504848,-2000.0,0.00031427,7]
[401149732,1767977504860,-1867.21,0.000315,2]
[401149733,1767977504869,-310.27,0.00031506,31]
[401149734,1767977504879,-1923.85,0.00031506,8]
[401149735,1767977504888,-1867.21,0.000316,2]
[401149736,1767977504899,-1867.21,0.000316,2]
[401149737,1767977504908,-479.76,0.00031644,30]
[401149738,1767977504917,-1867.21,0.000317,2]
[401149739,1767977504926,-1867.21,0.000317,2]
[401149740,1767977504936,-1867.21,0.000318,2]
[401149741,1767977504945,-10000.00000001,0.0003187,7]
[401149742,1767977504955,-25042.02528689,0.000319,2]
[401149743,1767977504963,-1867.21,0.000319,2]
[401149744,1767977504973,-1867.21,0.000319,2]
[401149745,1767977504982,-1216.41896359,0.000319,120]
[401149746,1767977504991,-10990.61241847,0.00031951,2]
[401149747,1767977505001,-341162.06,0.00032,5]
[401149748,1767977505011,-100004.47,0.00032,5]
[401149749,1767977505020,-300.0,0.00032,30]
[401149750,1767977505030,-1845.8774397,0.00032,120]
[401149751,1767977505039,-1000.0,0.00032,120]
[401149752,1767977505049,-1867.21,0.00032,2]
[401149753,1767977505060,-1867.21,0.00032,2]
[401149754,1767977505069,-1610.24,0.00032,14]
[401149755,1767977505078,-1023.03889407,0.00032,7]
[401149756,1767977505087,-310.27,0.00032054,32]
[401149757,1767977505097,-1867.21,0.000321,2]
[401149758,1767977505106,-500.0,0.0003216,2]
[401149759,1767977505116,-1867.21,0.000322,2]
[401149760,1767977505125,-1867.21,0.000322,2]
[401149761,1767977505135,-2000.0,0.00032284,7]
[401149762,1767977505144,-1867.21,0.000323,2]
[401149763,1767977505153,-166.0,0.00032301,52]
[401149764,1767977505163,-500.0,0.00032328,7]
[401149765,1767977505173,-500.0,0.00032328,7]
[401149766,1767977505182,-500.0,0.00032328,7]
[401149767,1767977505191,-500.0,0.00032328,7]
[401149768,1767977505203,-500.0,0.00032328,7]
[401149769,1767977505212,-500.0,0.00032328,7]
[401149770,1767977505222,-500.0,0.00032328,7]
[401149771,1767977505231,-500.0,0.00032328,7]
[401149772,1767977505241,-500.0,0.00032328,7]
[401149773,1767977505250,-492.82745505,0.00032328,7]
[401149774,1767977505260,-151.05135746,0.00032349,120]
[401149775,1767977505269,-1867.21,0.000324,2]
[401149776,1767977505278,-1867.21,0.000324,2]
[401149777,1767977505288,-3169.0,0.000324,120]
[401149778,1767977505297,-1000.0,0.00032457,14]
[401149779,1767977505307,-128929.8765375,0.000325,2]
[401149780,1767977505316,-1867.21,0.000325,2]
[401149781,1767977505326,-1867.21,0.000325,2]
[401149782,1767977505336,-151.05135746,0.00032555,5]
[401149783,1767977505346,-1867.21,0.000326,2]
[401149784,1767977505357,-310.27,0.00032602,33]
[401149785,1767977505366,-6352.29956731,0.00032657,10]
[401149786,1767977505376,-2146.0,0.00032657,2]
[401149787,1767977505386,-628.0,0.00032657,2]
[401149788,1767977505396,-1366.0,0.00032657,2]
[401149789,1767977505407,-395.05035025,0.00032659,60]
[401149790,1767977505418,-991.3446536,0.00032676,120]
[401149791,1767977505428,-317406.67680514,0.00032689,7]
[401149792,1767977505438,-1867.21,0.000327,2]
[401149793,1767977505448,-1867.21,0.000327,2]
[401149794,1767977505458,-1122819.67438712,0.000327,30]
[401149795,1767977505467,-1867.21,0.000328,2]
[401149796,1767977505477,-1867.21,0.000328,2]
[401149797,1767977505486,-10000.0,0.0003287,30]
[401149798,1767977505496,-500.0,0.00032876,120]
[401149799,1767977505506,-1923.85,0.00032876,120]
[401149800,1767977505515,-500.0,0.00032876,120]
[401149801,1767977505524,-500.0,0.00032876,120]
[401149802,1767977505535,-500.0,0.00032876,120]
[401149803,1767977505545,-500.0,0.00032876,120]
[401149804,1767977505555,-500.0,0.00032876,120]
[401149805,1767977505565,-500.0,0.00032876,120]
[401149806,1767977505575,-500.0,0.00032876,120]
[401149807,1767977505584,-500.0,0.00032876,120]
[401149808,1767977505594,-500.0,0.00032876,120]
[401149809,1767977505604,-500.0,0.00032876,120]
[401149810,1767977505615,-500.0,0.00032876,120]
[401149811,1767977505625,-500.0,0.00032876,120]
[401149812,1767977505634,-500.0,0.00032876,120]
[401149813,1767977505644,-500.0,0.00032876,120]
[401149814,1767977505653,-500.0,0.00032876,120]
[401149815,1767977505663,-500.0,0.00032876,120]
[401149816,1767977505672,-500.0,0.00032876,120]
[401149817,1767977505682,-311.83605394,0.00032876,120]
[401149818,1767977505691,-500.0,0.00032877,8]
[401149819,1767977505705,-500.0,0.00032877,8]
[401149820,1767977505714,-13629.09,0.00032877,10]
[401149821,1767977505723,-1227.05066153,0.00032877,10]
[401149822,1767977505996,-4044.40435005,0.00032877,10]
[401149823,1767977506008,-6086.11498842,0.00032877,10]
[401149824,1767977506018,-453266.16859209,0.00032889,30]
[401149826,1767977579765,561.94,0.00030136,120]
[401149828,1767977586897,616.27242525,0.00030136,120]
[401149829,1767977588924,500.0,0.00030136,120]
[401149830,1767977590773,500.0,0.00030136,120]
[401149831,1767977591814,500.0,0.00030136,120]
[401149832,1767977592531,500.0,0.00030136,120]
[401149833,1767977605654,500.0,0.00030136,120]
[401149834,1767977606039,379.88,0.00030136,120]
[401149835,1767977606924,489.28984708,0.00030136,120]
[401149843,1767977649949,500.0,0.00030136,120]
[401149844,1767977652673,562.18,0.00030136,120]
[401149845,1767977658445,500.0,0.00030136,120]
[401149846,1767977667941,500.0,0.00030136,120]
[401149847,1767977672857,500.0,0.00030136,120]
[401149848,1767977679302,500.0,0.00030136,120]
[401149849,1767977680873,500.0,0.00030136,120]
[401149850,1767977682691,500.0,0.00030136,120]
[401149851,1767977694893,500.0,0.00030136,120]
[401149852,1767977696110,500.0,0.00030136,120]
[401149853,1767977708619,500.0,0.00030136,120]
[401149854,1767977711315,503.69786312,0.00030136,120]
[401149855,1767977714962,500.0,0.00030136,120]
[401149856,1767977717655,501.70744514,0.00030136,120]
[401149857,1767977719434,502.28084033,0.00030136,120]
[401149858,1767977722563,500.0,0.00030136,120]
[401149859,1767977724150,284.81687652,0.00030136,120]
[401149860,1767977724758,500.0,0.00030136,120]
[401149861,1767977728166,500.0,0.00030136,120]
[401149862,1767977767170,549.86537885,0.00030136,120]
[401149863,1767977770735,502.48597951,0.00030136,120]
[401149864,1767977772619,500.0,0.00030136,120]
[401149865,1767977810569,500.0,0.00030136,120]
[401149866,1767977815241,512.71706219,0.00030136,120]
[401149867,1767977824236,328.32113839,0.00030136,120]
[401149868,1767977825416,500.0,0.00030136,120]
[401149869,1767977876714,535.24764614,0.00030136,120]
[401149870,1767977923781,500.0,0.00030136,120]
[401149872,1767978040341,500.0,0.00030136,120]
[401149873,1767978047405,549.15037855,0.00030136,120]
[401149874,1767978052646,500.0,0.00030136,120]
[401149875,1767978056376,500.0,0.00030136,120]
[401149876,1767978058238,500.71208436,0.00030136,120]
[401149877,1767978064034,413.49881912,0.00030136,120]
[401149878,1767978075565,511.20885564,0.00030136,120]
[401149879,1767978077346,500.0,0.00030136,120]
[401149880,1767978079526,500.0,0.00030136,120]
[401149881,1767978088111,500.0,0.00030136,120]
[401149882,1767978096746,334.57349724,0.00030136,120]
[401149883,1767978111298,424.77874649,0.00030136,120]
[401149884,1767978116968,503.30932018,0.00030136,120]
[401149885,1767978120334,527.74822288,0.00030136,120]
[401149886,1767978122821,513.48056605,0.00030136,120]
[401149887,1767978125319,500.0,0.00030136,120]
[401149896,1767978127672,500.0,0.00030136,120]
[401149907,1767978129188,500.0,0.00030136,120]
[401149908,1767978131143,500.0,0.00030136,120]
[401149909,1767978134601,159.2424104,0.00030136,120]
[401149910,1767978141381,434.55341321,0.00030136,120]
[401149911,1767978155819,503.79267677,0.00030136,120]
[401149912,1767978159049,320.5975715,0.00030136,120]
[401149913,1767978161033,218.64994962,0.00030136,120]
[401149914,1767978165531,371.78271176,0.0003013,120]
[401149915,1767978168380,504.98112104,0.00030136,120]
[401149916,1767978169284,606.66715194,0.00030136,120]
[401149917,1767978176161,507.0804847,0.00030136,120]
[401149918,1767978178204,506.72603081,0.00030136,120]
[401149919,1767978200844,489.10590206,0.00030136,120]
[401149920,1767978202835,504.78054842,0.00030136,120]
[401149921,1767978205064,509.5678513,0.00030136,120]
[401149922,1767978206820,507.4257472,0.00030136,120]
[401149923,1767978206854,503.6364401,0.00030136,120]
[401149924,1767978216044,521.54556642,0.00030136,120]
[401149925,1767978217318,508.8363579,0.00030136,120]
[401149926,1767978222876,500.0,0.00030136,120]
[401149927,1767978232909,500.0,0.00030136,120]
[401149928,1767978249847,611.36163321,0.00030136,120]
[401149929,1767978258519,500.0,0.00030136,120]
[401149930,1767978261256,500.0,0.00030136,120]
[401149931,1767978266430,502.31636955,0.00030136,120]
[401149932,1767978362992,500.0,0.00030136,120]
[401149933,1767978393110,502.12466325,0.00030136,120]
[401149934,1767978405312,502.04323375,0.00030136,120]
[401149935,1767978460397,522.99413459,0.00030136,120]
[401149977,1767978637744,-407.89,0.00012129,2]
[401150000,1767978639788,-919.35239916,0.00012129,2]
[401150353,1767978643718,-3128.78259114,0.00012129,2]
[401150354,1767978643728,-300.0,0.00012471,2]
[401150355,1767978643738,-300.0,0.00012471,2]
[401150356,1767978643748,-300.0,0.00012471,2]
[401150357,1767978643758,-300.0,0.00012471,2]
[401150358,1767978643769,-300.0,0.00012471,2]
[401150359,1767978643778,-300.0,0.00012471,2]
[401150360,1767978643788,-300.0,0.00012471,2]
[401150361,1767978643798,-300.0,0.00012471,2]
[401150362,1767978643808,-300.0,0.00012471,2]
[401150363,1767978643818,-113.97070154,0.00012471,2]
[401150364,1767978643829,-186.02929846,0.00012471,2]
[401150365,1767978643839,-300.0,0.00012471,2]
[401150366,1767978643849,-300.0,0.00012471,2]
[401150367,1767978643859,-300.0,0.00012471,2]
[401150368,1767978643870,-300.0,0.00012471,2]
[401150369,1767978643880,-300.0,0.00012471,2]
[401150370,1767978643892,-396.94555792,0.00013273,2]
[401150371,1767978643904,-103.05444208,0.00013273,2]
[401150372,1767978643914,-500.0,0.00013273,2]
[401150373,1767978643923,-500.0,0.00013273,2]
[401150374,1767978643933,-500.0,0.00013273,2]
[401150375,1767978643943,-235.26255763,0.00013273,2]
[401150376,1767978643953,-500.0,0.00013273,2]
[401150377,1767978643963,-500.0,0.00013273,2]
[401150378,1767978643973,-500.0,0.00013273,2]
[401150379,1767978643983,-500.0,0.00013273,2]
[401150380,1767978643993,-23.65413348,0.00013273,2]
[401150402,1767978645611,-476.34586652,0.00013273,2]
[401150403,1767978645622,-500.0,0.00013273,2]
[401150405,1767978645633,-501.00000009,0.00013273,2]
[401150406,1767978645643,-500.0,0.00013273,2]
[401150407,1767978645654,-500.0,0.00013273,2]
[401150408,1767978645664,-500.8915397,0.00013273,2]
[401150409,1767978645674,-501.92931804,0.00013273,2]
[401150410,1767978645684,-500.0,0.00013273,2]
[401150411,1767978645694,-500.0,0.00013273,2]
[401150412,1767978645704,-500.82445671,0.00013273,2]
[401150413,1767978645716,-500.0,0.00013273,2]
[401150414,1767978645726,-561.44282102,0.00013273,2]
[401150415,1767978645736,-500.0,0.00013273,2]
[401150416,1767978645746,-500.0,0.00013273,2]
[401150417,1767978645755,-647.41342126,0.00013273,2]
[401150418,1767978645766,-500.0,0.00013273,2]
[401150419,1767978645776,-179.12413668,0.00013273,2]
[401150420,1767978645786,-500.0,0.00013273,2]
[401150421,1767978645796,-397.43235778,0.00013273,2]
[401150422,1767978645807,-500.0,0.00013273,2]
[401150423,1767978645817,-500.0,0.00013273,2]
[401150424,1767978645827,-500.0,0.00013273,2]
[401150425,1767978645838,-500.0,0.00013273,2]
[401150426,1767978645847,-500.0,0.00013698,2]
[401150427,1767978645857,-500.0,0.00013698,2]
[401150428,1767978645866,-488.01413572,0.00013698,2]
[401150429,1767978645878,-11.98586428,0.00013698,2]
[401150430,1767978645888,-500.0,0.00013698,2]
[401150431,1767978645898,-500.0,0.00013698,2]
[401150432,1767978645907,-500.0,0.00013698,2]
[401150433,1767978645917,-500.0,0.00013698,2]
[401150434,1767978645926,-500.0,0.00013698,2]
[401150435,1767978645936,-500.0,0.00013698,2]
[401150436,1767978645946,-500.0,0.00013698,2]
[401150437,1767978645955,-500.0,0.00013698,2]
[401150438,1767978645966,-500.0,0.00013698,2]
[401150439,1767978645975,-500.0,0.00013698,2]
[401150440,1767978645985,-500.0,0.00013698,2]
[401150441,1767978645994,-1000.0,0.00013989,2]
[401150442,1767978646003,-3711.2653694,0.0001408,2]
[401150443,1767978646013,-500.0,0.00014246,2]
[401150444,1767978646023,-500.0,0.00014246,2]
[401150445,1767978646032,-177.0,0.000143,2]
[401150446,1767978646040,-500.0,0.00014509,2]
[401150447,1767978646049,-500.0,0.00014509,2]
[401150448,1767978646059,-235.62664204,0.00014823,2]
[401150449,1767978646068,-500.0,0.00015315,2]
[401150450,1767978646078,-500.0,0.00015315,2]
[401150451,1767978646088,-600.0,0.00015689,2]
[401150452,1767978646102,-500.0,0.00015999,2]
[401150453,1767978646111,-500.0,0.00015999,2]
[401150454,1767978646121,-1000.0,0.00016,2]
[401150455,1767978646130,-443.26038691,0.00016217,2]
[401150456,1767978646141,-64.75581794,0.00016217,2]
[401150457,1767978646153,-435.24418206,0.00016217,2]
[401150458,1767978646163,-500.0,0.00016217,2]
[401150459,1767978646172,-500.0,0.00016217,2]
[401150460,1767978646181,-500.0,0.00016217,2]
[401150461,1767978646193,-64.75581794,0.00016217,2]
[401150462,1767978646205,-435.24418206,0.00016217,2]
[401150463,1767978646216,-500.0,0.00016217,2]
[401150464,1767978646225,-20.29198006,0.00016217,2]
[401150465,1767978835855,500.0,0.00024719,120]
[401150466,1767978836079,500.0,0.0002801,120]
[401150467,1767978836333,500.0,0.000287,120]
[401150468,1767978836581,500.0,0.000287,120]
[401150469,1767978853338,500.0,0.00030136,120]
[401150470,1767978853583,500.0,0.00030136,120]
[401150471,1767978853821,500.0,0.00030136,120]
[401150472,1767978854103,500.0,0.00030136,120]
[401150473,1767978854350,500.0,0.00030136,120]
[401150474,1767978854599,500.0,0.00030136,120]
[401150475,1767978854845,456.59,0.00030136,120]
[401150476,1767978861945,500.0,0.00030136,120]
[401150477,1767978874264,500.0,0.00030136,120]
[401150478,1767978874544,500.0,0.00030136,120]
[401150479,1767978874778,500.0,0.00030136,120]
[401150480,1767978875022,610.28,0.00030136,120]
[401150481,1767978925334,500.0,0.00030136,120]
[401150482,1767978936429,639.55,0.00030136,120]
[401150483,1767978956805,500.0,0.00030136,120]
[401150484,1767979014730,500.0,0.00030136,120]
[401150485,1767979016653,500.0,0.00030136,120]
[401150486,1767979018065,561.83,0.00030136,120]
[401150487,1767979019122,500.0,0.00030136,120]
[401150488,1767979020419,500.0,0.00030136,120]
[401150489,1767979024584,500.0,0.00030136,120]
[401150490,1767979038166,500.0,0.00030136,120]
[401150491,1767979038402,306.55,0.00030136,120]
[401150492,1767979054258,500.0,0.00030136,120]
[401150493,1767979062419,500.0,0.00030136,120]
[401150494,1767979066150,515.33,0.00030136,120]
[401150495,1767979071488,500.0,0.00030136,120]
[401150496,1767979110775,500.0,0.00030136,120]
[401150497,1767979112193,500.0,0.00030136,120]
[401150498,1767979118111,500.0,0.00030136,120]
[401150499,1767979125538,500.0,0.00030136,120]
[401150500,1767979150949,500.0,0.00030136,120]
[401150501,1767979170616,500.0,0.00030136,120]
[401150502,1767979172696,500.0,0.00030136,120]
[401150503,1767979174504,500.0,0.00030136,120]
[401150504,1767979215941,587.14778229,0.00030136,120]
[401150505,1767979216089,556.20318555,0.00030136,120]
[401150506,1767979217513,500.0,0.00030136,120]
[401150507,1767979238246,500.0,0.00030136,120]
[401150508,1767979238908,501.75928459,0.00030136,120]
[401150509,1767979260428,515.11,0.00030136,120]
[401150510,1767979261532,500.0,0.00030136,120]
[401150511,1767979272955,496.03666256,0.00030136,120]
[401150512,1767979274756,500.0,0.00030136,120]
[401150513,1767979280681,500.0,0.00030136,120]
[401150514,1767979281055,283.00251269,0.00030136,120]
[401150515,1767979296178,500.0,0.00030136,120]
[401150516,1767979301367,593.27,0.00030136,120]
[401150517,1767979316096,500.0,0.00030136,120]
[401150518,1767979326308,500.0,0.00030136,120]
[401150519,1767979550897,500.0,0.00030136,120]
[401150521,1767979662638,500.0,0.00030136,120]
[401150522,1767979688021,500.0,0.00030136,120]